fUST/lending_fUST_20251219
["ID","MTS","AMOUNT","RATE_DAILY","PERIOD"]
[399120251,1766115043914,-447.0,0.00035485,120]
[399120253,1766115043925,-520.50952492,0.00035616,7]
[399120255,1766115043936,-688.49839244,0.00035925,2]
[399120257,1766115043947,-162.66109584,0.00036156,2]
[399120259,1766115043958,-9917.86,0.000362,14]
[399120262,1766115043968,-713.97283296,0.00036473,2]
[399120264,1766115043978,-613.0612571,0.00036698,2]
[399120266,1766115043992,-15025.0827977,0.0003698,3]
[399120268,1766115044003,-740.38982778,0.00037021,2]
[399120270,1766115044014,-219.82,0.000374,30]
[399120273,1766115044025,-474.0,0.00037485,120]
[399120275,1766115044036,-767.7842514,0.00037569,2]
[399120277,1766115044049,-13531.46,0.000376,2]
[399120279,1766115044060,-96141.19262534,0.0003801,3]
[399120281,1766115044071,-2222.040832,0.0003801,31]
[399120283,1766115044083,-2222.040832,0.0003801,31]
[399120285,1766115044095,-2222.040832,0.0003801,31]
[399120288,1766115044107,-2222.040832,0.0003801,31]
[399120290,1766115044118,-796.19226871,0.00038117,2]
[399120292,1766115044129,-599.45645444,0.00038665,2]
[399120294,1766115044140,-245.17131818,0.00039485,120]
[399120296,1766115044153,-7512.54139886,0.00039716,3]
[399120298,1766115044166,-500.0,0.00039726,15]
[399120300,1766115044178,-500.0,0.00039726,15]
[399120303,1766115044190,-500.0,0.00039726,15]
[399120305,1766115044202,-500.0,0.00039726,15]
[399120307,1766115044214,-500.0,0.00039726,15]
[399120309,1766115044227,-500.0,0.00039726,15]
[399120311,1766115044238,-500.0,0.00039726,15]
[399120313,1766115044249,-500.0,0.00039726,15]
[399120315,1766115044259,-500.0,0.00039726,15]
[399120317,1766115044269,-500.0,0.00039726,15]
[399120319,1766115044280,-500.0,0.00039726,15]
[399120321,1766115044301,-500.0,0.00039726,15]
[399120323,1766115044313,-500.0,0.00039726,15]
[399120325,1766115044324,-500.0,0.00039726,15]
[399120328,1766115044336,-500.0,0.00039726,15]
[399120330,1766115044348,-500.0,0.00039726,15]
[399120332,1766115044364,-500.0,0.00039726,15]
[399120334,1766115044375,-500.0,0.00039726,15]
[399120336,1766115044387,-500.0,0.00039726,15]
[399120338,1766115044403,-500.0,0.00039726,15]
[399120340,1766115044414,-500.0,0.00039726,15]
[399120343,1766115044430,-500.0,0.00039726,15]
[399120345,1766115044441,-500.0,0.00039726,15]
[399120347,1766115044451,-500.0,0.00039726,15]
[399120349,1766115044462,-561.52092559,0.00039726,15]
[399120351,1766115044472,-500.0,0.00039726,15]
[399120353,1766115044483,-500.0,0.00039726,15]
[399120355,1766115044494,-500.0,0.00039726,15]
[399120357,1766115044505,-500.0,0.00039726,15]
[399120360,1766115044516,-500.0,0.00039726,15]
[399120362,1766115044527,-500.0,0.00039726,15]
[399120364,1766115044537,-500.0,0.00039726,15]
[399120366,1766115044553,-500.0,0.00039726,15]
[399120368,1766115044565,-500.0,0.00039726,15]
[399120370,1766115044576,-500.0,0.00039726,15]
[399120372,1766115044586,-500.0,0.00039726,15]
[399120374,1766115044596,-500.0,0.00039726,15]
[399120376,1766115044606,-500.0,0.00039726,15]
[399120378,1766115044617,-500.0,0.00039726,15]
[399120380,1766115044627,-500.0,0.00039726,15]
[399120382,1766115044637,-500.0,0.00039726,15]
[399120384,1766115044647,-500.0,0.00039726,15]
[399120386,1766115044658,-500.0,0.00039726,15]
[399120388,1766115044668,-500.0,0.00039726,15]
[399120390,1766115044680,-500.0,0.00039726,15]
[399120393,1766115044691,-500.0,0.00039726,15]
[399120395,1766115044703,-500.0,0.00039726,15]
[399120397,1766115044713,-500.0,0.00039726,15]
[399120399,1766115044724,-500.0,0.00039726,15]
[399120401,1766115044734,-500.0,0.00039726,15]
[399120403,1766115044745,-500.0,0.00039726,15]
[399120405,1766115044755,-500.0,0.00039726,15]
[399120407,1766115044764,-500.0,0.00039726,15]
[399120409,1766115044774,-500.0,0.00039726,15]
[399120412,1766115044785,-500.0,0.00039726,15]
[399120414,1766115044801,-500.0,0.00039726,15]
[399120416,1766115044811,-500.0,0.00039726,15]
[399120418,1766115044821,-500.0,0.00039726,15]
[399120420,1766115044830,-500.0,0.00039726,15]
[399120422,1766115044840,-500.0,0.00039726,15]
[399120424,1766115044850,-500.0,0.00039726,15]
[399120426,1766115044861,-500.0,0.00039726,15]
[399120428,1766115044870,-500.0,0.00039726,15]
[399120430,1766115044880,-500.0,0.00039726,15]
[399120432,1766115044890,-250.0,0.00039726,15]
[399120434,1766115044899,-500.0,0.00039726,15]
[399120436,1766115044910,-500.0,0.00039726,15]
[399120438,1766115044919,-500.0,0.00039726,15]
[399120440,1766115044929,-500.0,0.00039726,15]
[399120442,1766115044939,-500.0,0.00039726,15]
[399120444,1766115044948,-500.0,0.00039726,15]
[399120446,1766115044958,-500.0,0.00039726,15]
[399120448,1766115044968,-500.0,0.00039726,15]
[399120450,1766115044977,-500.0,0.00039726,15]
[399120452,1766115044987,-500.0,0.00039726,15]
[399120454,1766115044997,-500.0,0.00039726,15]
[399120456,1766115045007,-500.0,0.00039726,15]
[399120459,1766115045018,-500.0,0.00039726,15]
[399120461,1766115045028,-245.0,0.00039726,15]
[399120463,1766115045038,-500.0,0.00039726,15]
[399120465,1766115045049,-500.0,0.00039726,15]
[399120467,1766115045059,-500.0,0.00039726,15]
[399120469,1766115045070,-500.0,0.00039726,15]
[399120471,1766115045080,-500.0,0.00039726,15]
[399120473,1766115045090,-500.0,0.00039726,15]
[399120487,1766115045210,-500.0,0.00039726,15]
[399120490,1766115045225,-500.0,0.00039726,15]
[399120492,1766115045235,-500.0,0.00039726,15]
[399120494,1766115045244,-500.0,0.00039726,15]
[399120496,1766115045253,-425.18721602,0.00040268,12]
[399120498,1766115045262,-500.0,0.00041096,120]
[399120500,1766115045273,-500.0,0.00041096,31]
[399120502,1766115045284,-500.0,0.00041096,31]
[399120505,1766115045295,-500.0,0.00041096,31]
[399120507,1766115045313,-500.0,0.00041096,31]
[399120509,1766115045329,-500.0,0.00041096,31]
[399120511,1766115045345,-500.0,0.00041096,31]
[399120513,1766115045355,-500.0,0.00041096,31]
[399120514,1766115045365,-500.0,0.00041096,31]
[399120515,1766115045374,-346.13744808,0.00041096,31]
[399120516,1766115045383,-500.0,0.00041096,31]
[399120517,1766115045392,-11968.52082855,0.00041355,90]
[399120518,1766115045402,-5000.0,0.00041355,2]
[399120519,1766115045411,-8356.05357665,0.00041355,2]
[399120525,1766115047159,-227.33,0.00015289,2]
[399120526,1766115047169,-259.81,0.00015855,2]
[399120527,1766115047178,-292.28,0.00016421,2]
[399120528,1766115047188,-324.76,0.00016988,2]
[399120529,1766115047198,-159.32821131,0.00020623,2]
[399120530,1766115047207,-500.0,0.0003,2]
[399120531,1766115047217,-229.0,0.00037734,2]
[399120532,1766115047227,-11653.9370079,0.00041355,2]
[399120533,1766115047235,-500.0,0.00041644,120]
[399120534,1766115047245,-500.0,0.00042192,120]
[399120535,1766115047254,-500.0,0.0004274,120]
[399120536,1766115047263,-172.38574079,0.00043,30]
[399120537,1766115047272,-2342.60139774,0.00043278,3]
[399120538,1766115047284,-708.95109972,0.00043278,3]
[399120572,1766115049645,-229.0,0.00038635,2]
[399120573,1766115049655,-2001.07681706,0.00043278,3]
[399120575,1766115050430,-88.68052669,0.00043278,3]
[399120582,1766115063894,500.0,0.00013273,2]
[399120583,1766115063943,1000.0,0.00013821,2]
[399120586,1766115066642,152.03,0.00013273,2]
[399120593,1766115076524,500.0,0.00013273,2]
[399120595,1766115079407,500.0,0.00013273,2]
[399120596,1766115080334,500.0,0.00013273,2]
[399120613,1766115111256,150.0,9.195e-05,2]
[399120614,1766115111675,150.0,9.633e-05,2]
[399120615,1766115112085,150.0,0.00010071,2]
[399120616,1766115123172,500.0,0.00013273,2]
[399120621,1766115176480,150.0,9.101e-05,2]
[399120622,1766115176897,150.0,9.535e-05,2]
[399120623,1766115177304,150.0,9.968e-05,2]
[399120626,1766115196121,500.0,0.00013273,2]
[399120627,1766115199049,500.0,0.00013273,2]
[399120628,1766115200131,500.0,0.00013273,2]
[399120629,1766115202660,-5000.0,0.00013562,2]
[399120630,1766115206756,-150.0,0.0001363,2]
[399120631,1766115206788,-300.0,0.00013673,2]
[399120632,1766115206816,-300.0,0.00013698,2]
[399120633,1766115206844,-500.0,0.00013699,2]
[399120634,1766115206872,-500.0,0.00013699,2]
[399120635,1766115206900,-500.0,0.00013699,2]
[399120636,1766115207025,-500.0,0.00013699,2]
[399120637,1766115207052,-500.0,0.00013699,2]
[399120638,1766115207078,-1000.0,0.00013821,2]
[399120639,1766115207104,-500.01,0.00013821,2]
[399120640,1766115209867,-1968.10376632,0.00013682,2]
[399120641,1766115209896,-499.99,0.00013821,2]
[399120642,1766115209924,-1000.0,0.00013821,2]
[399120643,1766115209952,-1000.0,0.00013821,2]
[399120644,1766115209979,-163.29801542,0.00013973,2]
[399120645,1766115210010,-137.22643652,0.00014221,2]
[399120646,1766115213063,-462.77356348,0.00014221,2]
[399120647,1766115213096,-500.0,0.00014245,2]
[399120648,1766115242426,150.0,8.781e-05,2]
[399120649,1766115250489,-500.0,0.00013699,2]
[399120650,1766115250518,-500.0,0.00013699,2]
[399120651,1766115255300,5000.0,0.00014245,2]
[399120652,1766115271649,3000.01,0.00014245,2]
[399120653,1766115271676,1999.99,0.00014245,2]
[399120654,1766115279593,4187.34669023,0.00014245,2]
[399120670,1766115303845,5000.0,0.00014245,2]
[399120671,1766115304284,500.0,0.00013273,2]
[399120672,1766115304330,500.0,0.00013699,2]
[399120673,1766115304360,1000.0,0.00013821,2]
[399120674,1766115304458,500.0,0.00013273,2]
[399120675,1766115304507,500.0,0.00013821,2]
[399120676,1766115304644,500.0,0.00013699,2]
[399120677,1766115305286,500.0,0.00013273,2]
[399120678,1766115305347,1000.0,0.00013821,2]
[399120679,1766115306775,0.01,0.00011803,2]
[399120680,1766115306806,149.99,0.00011803,2]
[399120681,1766115307166,177.2,0.00012365,2]
[399120682,1766115315444,-265.8,0.00012927,2]
[399120683,1766115315473,-500.0,0.00013273,2]
[399120684,1766115315502,-500.0,0.00013273,2]
[399120685,1766115315534,-354.39,0.00013489,2]
[399120686,1766115315562,-500.0,0.00013699,2]
[399120687,1766115315590,-500.0,0.00013699,2]
[399120688,1766115315619,-500.0,0.00013699,2]
[399120689,1766115315648,-500.0,0.00013699,2]
[399120690,1766115315683,-500.0,0.00013699,2]
[399120691,1766115315731,-500.0,0.00013699,2]
[399120692,1766115315762,-259.63,0.00013699,2]
[399120693,1766115327115,-500.0,0.00013273,2]
[399120694,1766115327143,-500.0,0.00013273,2]
[399120695,1766115327171,-500.0,0.00013273,2]
[399120696,1766115327198,-500.0,0.00013273,2]
[399120697,1766115327225,-500.0,0.00013273,2]
[399120698,1766115327255,-300.0,0.00013673,2]
[399120699,1766115327282,-240.37,0.00013699,2]
[399120700,1766115327312,-251.99479687,0.00013699,2]
[399120701,1766115327344,-623.78789496,0.00013699,2]
[399120702,1766115327379,-501.38998605,0.00013699,2]
[399120703,1766115327406,-500.70437393,0.00013699,2]
[399120704,1766115330549,-500.0,0.00013699,2]
[399120705,1766115330575,-500.0,0.00013699,2]
[399120706,1766115330603,-500.0,0.00013699,2]
[399120707,1766115330634,-500.0,0.00013699,2]
[399120708,1766115330662,-166.04915196,0.00013699,2]
[399120709,1766115330690,-500.0,0.00013821,2]
[399120710,1766115330720,-607.64561163,0.00013821,2]
[399120711,1766115330747,-1000.0,0.00013821,2]
[399120712,1766115330775,-452.62047282,0.00013821,2]
[399120713,1766115333842,-547.37952718,0.00013821,2]
[399120714,1766115333875,-1000.0,0.00013821,2]
[399120715,1766115333903,-1000.0,0.00013821,2]
[399120716,1766115333934,-442.99,0.00014052,2]
[399120717,1766115333962,-600.0,0.00014221,2]
[399120718,1766115333990,-500.0,0.00014246,2]
[399120719,1766115334018,-194.0,0.00014246,2]
[399120720,1766115334046,-300.0,0.00014246,2]
[399120721,1766115334073,-331.27094564,0.00014247,2]
[399120722,1766115336909,-168.72905436,0.00014247,2]
[399120723,1766115336941,-1000.0,0.00014247,2]
[399120724,1766115336970,-1000.0,0.00014247,2]
[399120725,1766115337003,-1000.0,0.00014247,2]
[399120726,1766115337032,-599.95843345,0.00014247,2]
[399120727,1766115337061,-347.45618444,0.00014247,2]
[399120728,1766115337090,-311.53108574,0.00014247,2]
[399120729,1766115337122,-144.66048402,0.00014247,2]
[399120733,1766115375762,-500.0,0.00013273,2]
[399120734,1766115375790,-635.19392553,0.00013273,2]
[399120735,1766115375816,-500.0,0.00013699,2]
[399120736,1766115375843,-500.0,0.00013699,2]
[399120737,1766115375872,-500.0,0.00013699,2]
[399120738,1766115375909,-500.70374767,0.00013699,2]
[399120739,1766115375936,-500.0,0.00013699,2]
[399120740,1766115375963,-283.01687613,0.00013699,2]
[399120741,1766115375990,-500.0,0.00013699,2]
[399120743,1766115376017,-500.0,0.00013699,2]
[399120747,1766115378503,-1000.0,0.00013821,2]
[399120748,1766115378532,-855.33951598,0.00014247,2]
[399120749,1766115378562,-1000.0,0.00014247,2]
[399120750,1766115378593,-1000.0,0.00014247,2]
[399120751,1766115378623,-1000.0,0.00014247,2]
[399120754,1766115382022,-686.71316965,0.00014247,2]
[399120755,1766115382051,-1000.0,0.00014247,2]
[399120756,1766115382079,-425.74949727,0.00014247,2]
[399120757,1766115382107,-1000.0,0.00014247,2]
[399120758,1766115382137,-300.0,0.00014367,2]
[399120759,1766115382166,-300.0,0.00014367,2]
[399120760,1766115382193,-1075.08466616,0.00014368,2]
[399120761,1766115385495,150.0,0.00011674,2]
[399120762,1766115385910,161.97,0.0001223,2]
[399120763,1766115386168,-424.91533384,0.00014368,2]
[399120764,1766115386201,-1500.0,0.00014368,2]
[399120765,1766115386235,-1500.0,0.00014368,2]
[399120766,1766115386267,-1500.0,0.00014368,2]
[399120767,1766115392950,-579.56169804,0.00012657,2]
[399120768,1766115394565,-1412.47830196,0.00012657,2]
[399120769,1766115394596,-242.96,0.00012785,2]
[399120770,1766115394627,-323.94,0.00013341,2]
[399120771,1766115394658,-404.93,0.00013897,2]
[399120777,1766115422377,300.0,0.00014367,2]
[399120778,1766115423936,500.0,0.00013699,2]
[399120779,1766115423967,500.0,0.00013699,2]
[399120780,1766115424001,705.7127476,0.00014247,2]
[399120781,1766115424040,607.31949501,0.00013699,2]
[399120782,1766115424073,500.0,0.00013273,2]
[399120783,1766115424099,1000.0,0.00014247,2]
[399120784,1766115424124,1000.0,0.00013821,2]
[399120785,1766115424864,118.36115347,0.00013699,2]
[399120786,1766115428769,-500.0,0.00013273,2]
[399120787,1766115428799,-382.12389941,0.00013699,2]
[399120788,1766115428831,-500.0,0.00013699,2]
[399120789,1766115428859,-500.0,0.00013699,2]
[399120790,1766115428887,-500.0,0.00013699,2]
[399120791,1766115428931,-500.0,0.00013699,2]
[399120792,1766115429078,-500.0,0.00013699,2]
[399120793,1766115429107,-500.0,0.00013699,2]
[399120794,1766115429135,-1000.0,0.00013821,2]
[399120798,1766115437067,-500.0,0.00013699,2]
[399120799,1766115437096,-500.0,0.00013699,2]
[399120800,1766115437130,-500.0,0.00013699,2]
[399120801,1766115437160,-500.0,0.00013699,2]
[399120802,1766115437192,-500.0,0.00013699,2]
[399120803,1766115437222,-563.83489877,0.00014247,2]
[399120804,1766115437254,-1064.24395394,0.00014247,2]
[399120805,1766115437286,-743.85229458,0.00014247,2]
[399120806,1766115445163,-237.40871554,0.00013273,2]
[399120807,1766115445194,-500.0,0.00013273,2]
[399120808,1766115445222,-500.0,0.00013273,2]
[399120809,1766115445250,-500.0,0.00013273,2]
[399120810,1766115445278,-300.0,0.00013673,2]
[399120811,1766115445305,-359.0070707,0.00013699,2]
[399120812,1766115445333,-643.79350656,0.00013699,2]
[399120813,1766115445362,-500.0,0.00013699,2]
[399120814,1766115445393,-500.0,0.00013699,2]
[399120815,1766115445422,-919.5914144,0.00013821,2]
[399120819,1766115455601,-500.0,0.00013273,2]
[399120820,1766115455628,-500.45705758,0.00013699,2]
[399120821,1766115455658,-500.0,0.00013699,2]
[399120822,1766115455684,-500.0,0.00013699,2]
[399120823,1766115455713,-80.4085856,0.00013821,2]
[399120824,1766115455740,-1000.0,0.00013821,2]
[399120825,1766115455768,-1000.0,0.00013821,2]
[399120826,1766115455796,-838.27871364,0.00013821,2]
[399120834,1766115463938,-161.72128636,0.00013821,2]
[399120835,1766115463968,-600.0,0.00014221,2]
[399120836,1766115463995,-256.14770542,0.00014247,2]
[399120838,1766115464021,-1000.0,0.00014247,2]
[399120840,1766115464047,-921.19651962,0.00014247,2]
[399120841,1766115464072,-719.77722315,0.00014247,2]
[399120842,1766115464104,-1000.0,0.00014247,2]
[399120843,1766115464661,150.0,0.00010074,2]
[399120844,1766115465090,177.09,0.00010554,2]
[399120845,1766115465483,265.64,0.00011034,2]
[399120846,1766115465946,354.18,0.00011513,2]
[399120847,1766115466315,442.73,0.00011993,2]
[399120848,1766115466720,531.28,0.00012473,2]
[399120855,1766115471372,-619.82,0.00012953,2]
[399120856,1766115471412,-708.37,0.00013432,2]
[399120857,1766115471449,-796.91,0.00013912,2]
[399120858,1766115471479,-1000.0,0.00014247,2]
[399120859,1766115471510,-689.3060942,0.00014247,2]
[399120860,1766115471542,-166.8853131,0.00014247,2]
[399120861,1766115471573,-1000.0,0.00014247,2]
[399120870,1766115480254,250.57,7.492e-05,2]
[399120871,1766115480558,241.61,7.492e-05,2]
[399120872,1766115480855,241.6,7.492e-05,2]
[399120873,1766115484762,151.6,0.0001,2]
[399120875,1766115487166,151.6,0.000102,2]
[399120906,1766115509325,-500.0,0.00013273,2]
[399120907,1766115509353,-500.0,0.00013699,2]
[399120908,1766115509381,-500.0,0.00013699,2]
[399120909,1766115509412,-500.0,0.00013699,2]
[399120910,1766115509441,-1000.0,0.00013821,2]
[399120911,1766115509471,-1000.0,0.00014247,2]
[399120912,1766115509503,-607.6869184,0.00014247,2]
[399120913,1766115515599,-150.0,0.00013486,2]
[399120914,1766115515627,-1000.0,0.00014247,2]
[399120915,1766115515655,-300.0,0.00014367,2]
[399120916,1766115515684,-1052.0,0.00014367,2]
[399120917,1766115519512,2755.9661838,0.00013911,2]
[399120918,1766115524322,1698.33224146,0.00014368,2]
[399120919,1766115526962,-501.64472717,0.00014368,2]
[399120920,1766115526991,-1500.0,0.00014368,2]
[399120921,1766115527019,-1500.0,0.00014368,2]
[399120922,1766115527053,-1426.62035546,0.00014368,2]
[399120923,1766115531230,-1500.0,0.00014368,2]
[399120924,1766115531360,-1500.0,0.00014368,2]
[399120925,1766115531390,-885.46,0.00014392,2]
[399120926,1766115531420,-900.0,0.00014768,2]
[399120927,1766115532623,429.09,0.00014225,2]
[399120928,1766115535749,-4570.91,0.00014225,2]
[399120929,1766115541107,150.0,8.67e-05,2]
[399120930,1766115541548,150.0,9.083e-05,2]
[399120931,1766115541948,153.22,9.496e-05,2]
[399120932,1766115542342,204.3,9.909e-05,2]
[399120933,1766115542564,200.67,0.00014794,2]
[399120934,1766115542590,99.33,0.00014794,2]
[399120935,1766115542740,255.37,0.00010322,2]
[399120936,1766115543175,306.44,0.00010734,2]
[399120937,1766115543617,357.52,0.00011147,2]
[399120938,1766115544009,408.59,0.0001156,2]
[399120939,1766115544141,500.0,0.00013273,2]
[399120940,1766115544425,459.66,0.00011973,2]
[399120941,1766115544652,513.56051021,0.00013821,2]
[399120942,1766115544847,510.74,0.00012386,2]
[399120943,1766115546041,500.0,0.00014794,2]
[399120944,1766115546091,500.0,0.00014794,2]
[399120945,1766115546152,470.09666243,0.00014794,2]
[399120946,1766115555616,5000.0,0.00014795,2]
[399120947,1766115558836,118.70282736,0.00013273,2]
[399120948,1766115558858,381.29717264,0.00013273,2]
[399120949,1766115558885,1000.0,0.00013821,2]
[399120950,1766115558944,1500.0,0.00014368,2]
[399120951,1766115560377,300.0,0.00013673,2]
[399120952,1766115560431,600.0,0.00014221,2]
[399120953,1766115560482,900.0,0.00014768,2]
[399120954,1766115561485,500.0,0.00013273,2]
[399120955,1766115561531,1000.0,0.00013821,2]
[399120956,1766115561590,1500.0,0.00014368,2]
[399120957,1766115562976,500.0,0.00013273,2]
[399120958,1766115563025,1000.0,0.00013821,2]
[399120959,1766115563089,818.71282736,0.00014368,2]
[399120960,1766115564226,-500.0,0.00013699,2]
[399120961,1766115564256,-500.0,0.00013699,2]
[399120962,1766115564290,-1000.0,0.00014247,2]
[399120963,1766115564321,-1000.0,0.00014247,2]
[399120964,1766115564352,-681.28717264,0.00014368,2]
[399120965,1766115564382,-451.66079124,0.00014794,2]
[399120968,1766115566171,500.0,0.00014794,2]
[399120969,1766115566201,500.0,0.00014794,2]
[399120970,1766115566232,500.0,0.00014794,2]
[399120971,1766115566378,234.11407224,0.00014794,2]
[399120972,1766115567207,-265.88592776,0.00014794,2]
[399120973,1766115567237,-500.0,0.00014794,2]
[399120974,1766115567266,-500.0,0.00014794,2]
[399120975,1766115567296,-500.0,0.00014794,2]
[399120976,1766115567325,-500.0,0.00014794,2]
[399120977,1766115567357,-500.0,0.00014794,2]
[399120978,1766115567388,-500.0,0.00014794,2]
[399120979,1766115567423,-374.45591456,0.00014794,2]
[399120980,1766115567455,-500.0,0.00014794,2]
[399120981,1766115567485,-500.0,0.00014794,2]
[399120982,1766115567514,-219.32631536,0.00014794,2]
[399120984,1766115578721,-280.67368464,0.00014794,2]
[399120985,1766115578750,-500.0,0.00014794,2]
[399120986,1766115578778,-500.0,0.00014794,2]
[399120987,1766115578807,-500.0,0.00014794,2]
[399120988,1766115578837,-500.0,0.00014794,2]
[399120989,1766115578866,-500.0,0.00014794,2]
[399120990,1766115578894,-500.0,0.00014794,2]
[399120991,1766115578924,-500.0,0.00014794,2]
[399120992,1766115578955,-500.0,0.00014794,2]
[399120993,1766115578985,-500.0,0.00014794,2]
[399120994,1766115615018,150.0,0.000116,2]
[399120995,1766115615429,150.0,0.00012153,2]
[399120996,1766115615850,150.0,0.00012705,2]
[399121000,1766115633155,-150.0,0.00013258,2]
[399121003,1766115668111,-483.37830803,0.00013273,2]
[399121004,1766115668152,-500.0,0.00013273,2]
[399121005,1766115668183,-500.0,0.00013273,2]
[399121006,1766115668212,-500.0,0.00013273,2]
[399121007,1766115668242,-1200.0,0.00013698,2]
[399121008,1766115668282,-300.0,0.00013698,2]
[399121009,1766115668312,-500.0,0.00013699,2]
[399121010,1766115668345,-500.0,0.00013699,2]
[399121011,1766115668375,-500.0,0.00013699,2]
[399121012,1766115671119,-500.0,0.00013699,2]
[399121013,1766115671146,-500.0,0.00013699,2]
[399121014,1766115671174,-500.0,0.00013699,2]
[399121015,1766115671200,-500.0,0.00013699,2]
[399121016,1766115671228,-500.0,0.00013699,2]
[399121017,1766115671258,-176.23,0.0001381,2]
[399121018,1766115671286,-1000.0,0.00013821,2]
[399121019,1766115671314,-1000.0,0.00013821,2]
[399121023,1766115674245,-1000.0,0.00013821,2]
[399121024,1766115674273,-1000.0,0.00014247,2]
[399121025,1766115674300,-543.62791391,0.00014247,2]
[399121026,1766115674328,-1000.0,0.00014247,2]
[399121027,1766115674356,-1000.0,0.00014247,2]
[399121028,1766115674386,-391.96163764,0.00014247,2]
[399121029,1766115687924,150.0,0.0001195,2]
[399121030,1766115688356,150.0,0.00012519,2]
[399121031,1766115688759,150.0,0.00013088,2]
[399121035,1766115762632,150.0,0.00010271,2]
[399121036,1766115763140,150.0,0.0001076,2]
[399121037,1766115763593,150.0,0.0001125,2]
[399121038,1766115764006,150.0,0.00011739,2]
[399121039,1766115764435,155.47,0.00012228,2]
[399121040,1766115764846,186.57,0.00012717,2]
[399121041,1766115765257,217.66,0.00013206,2]
[399121042,1766115779444,5000.0,0.00013273,2]
[399121043,1766115782795,300.0,0.00013272,2]
[399121044,1766115790515,-500.0,0.00013273,2]
[399121045,1766115790546,-500.0,0.00013273,2]
[399121046,1766115790573,-500.0,0.00013273,2]
[399121047,1766115790601,-166.52684832,0.00013273,2]
[399121048,1766115790628,-500.0,0.00013273,2]
[399121049,1766115790654,-500.0,0.00013273,2]
[399121050,1766115790681,-300.0,0.00013673,2]
[399121051,1766115790711,-248.75,0.00013695,2]
[399121052,1766115790740,-500.0,0.00013699,2]
[399121053,1766115790772,-500.0,0.00013699,2]
[399121054,1766115790800,-500.0,0.00013699,2]
[399121055,1766115790828,-69.45630336,0.00013699,2]
[399121056,1766115794425,-430.54369664,0.00013699,2]
[399121057,1766115794458,-500.0,0.00013699,2]
[399121058,1766115794491,-500.0,0.00013699,2]
[399121059,1766115794518,-500.0,0.00013699,2]
[399121060,1766115794547,-409.71438174,0.00013699,2]
[399121061,1766115794574,-500.0,0.00013699,2]
[399121062,1766115794601,-500.0,0.00013699,2]
[399121063,1766115794630,-830.64591112,0.00013821,2]
[399121064,1766115794746,-658.202021,0.00013821,2]
[399121065,1766115797546,-341.797979,0.00013821,2]
[399121066,1766115797574,-1000.0,0.00013821,2]
[399121067,1766115797604,-1000.0,0.00013821,2]
[399121068,1766115797631,-1000.0,0.00013821,2]
[399121069,1766115797660,-279.85,0.00014184,2]
[399121070,1766115797688,-600.0,0.00014221,2]
[399121071,1766115797719,-128.8308969,0.00014247,2]
[399121072,1766115797747,-299.0522482,0.00014247,2]